fUSD/lending_fUSD_20250708
["ID","MTS","AMOUNT","RATE_DAILY","PERIOD"]
[370355268,1751977848963,-460.0,0.00024762,2]
[370355270,1751977848972,-460.0,0.00024762,2]
[370355272,1751977848981,-460.0,0.00024762,2]
[370355274,1751977848991,-460.0,0.00024762,2]
[370355276,1751977849001,-793.57,0.00024762,2]
[370355278,1751977849010,-460.0,0.00024762,2]
[370355280,1751977849020,-586.86,0.00024762,2]
[370355282,1751977849034,-460.0,0.00024762,2]
[370355284,1751977849043,-547.89,0.00024762,2]
[370355286,1751977849053,-655.63,0.00024762,2]
[370355288,1751977849063,-460.0,0.00024762,2]
[370355290,1751977849073,-514.67,0.00024762,2]
[370355292,1751977849083,-460.0,0.00024762,2]
[370355294,1751977849093,-460.0,0.00024762,2]
[370355297,1751977849103,-460.0,0.00024762,2]
[370355299,1751977849113,-460.0,0.00024762,2]
[370355301,1751977849123,-460.0,0.00024762,2]
[370355303,1751977849133,-460.0,0.00024762,2]
[370355305,1751977849143,-1035.22,0.00024762,2]
[370355307,1751977849153,-460.0,0.00024762,2]
[370355309,1751977849163,-460.0,0.00024762,2]
[370355311,1751977849174,-460.0,0.00024762,2]
[370355313,1751977849183,-551.6,0.00024762,2]
[370355315,1751977849194,-646.2,0.00024762,2]
[370355317,1751977849204,-460.0,0.00024762,2]
[370355319,1751977849215,-460.0,0.00024762,2]
[370355321,1751977849226,-460.0,0.00024762,2]
[370355323,1751977849236,-1114.71,0.00024762,2]
[370355326,1751977849246,-460.0,0.00024762,2]
[370355328,1751977849256,-460.0,0.00024762,2]
[370355330,1751977849266,-460.0,0.00024762,2]
[370355332,1751977849276,-460.0,0.00024762,2]
[370355334,1751977849285,-460.0,0.00024762,2]
[370355336,1751977849295,-460.0,0.00024762,2]
[370355338,1751977849305,-500.0,0.00024762,2]
[370355340,1751977849315,-460.0,0.00024762,2]
[370355342,1751977849325,-500.0,0.00024762,2]
[370355344,1751977849334,-460.0,0.00024762,2]
[370355346,1751977849344,-875.82,0.00024762,2]
[370355348,1751977849354,-460.0,0.00024762,2]
[370355350,1751977849363,-540.61,0.00024762,2]
[370355352,1751977849374,-460.0,0.00024762,2]
[370355354,1751977849384,-460.0,0.00024762,2]
[370355356,1751977849394,-460.0,0.00024762,2]
[370355358,1751977849404,-476.51,0.00024762,2]
[370355360,1751977849414,-460.0,0.00024762,2]
[370355362,1751977849424,-460.0,0.00024762,2]
[370355364,1751977849435,-570.99,0.00024762,2]
[370355366,1751977849445,-500.0,0.00024762,2]
[370355384,1751977849701,-563.79,0.00024762,2]
[370355386,1751977849712,-460.0,0.00024762,2]
[370355387,1751977849721,-460.0,0.00024762,2]
[370355388,1751977849732,-897.44,0.00024762,2]
[370355389,1751977849741,-460.0,0.00024762,2]
[370355390,1751977849750,-661.12,0.00024762,2]
[370355391,1751977849760,-460.0,0.00024762,2]
[370355392,1751977849769,-460.0,0.00024762,2]
[370355393,1751977849779,-460.0,0.00024762,2]
[370355394,1751977849789,-460.0,0.00024762,2]
[370355395,1751977849799,-460.0,0.00024762,2]
[370355396,1751977849808,-526.18,0.00024762,2]
[370355397,1751977849818,-819.3,0.00024762,2]
[370355398,1751977849828,-460.0,0.00024762,2]
[370355399,1751977849838,-460.0,0.00024762,2]
[370355400,1751977849847,-460.0,0.00024762,2]
[370355401,1751977849857,-300.0,0.00024762,2]
[370355402,1751977849866,-460.0,0.00024762,2]
[370355403,1751977849876,-647.48,0.00024762,2]
[370355404,1751977849886,-460.0,0.00024762,2]
[370355405,1751977849896,-460.0,0.00024762,2]
[370355406,1751977849906,-460.0,0.00024762,2]
[370355407,1751977849915,-460.0,0.00024762,2]
[370355408,1751977849925,-460.0,0.00024762,2]
[370355409,1751977849935,-530.85,0.00024762,2]
[370355410,1751977849945,-1013.43,0.00024762,2]
[370355411,1751977849954,-460.0,0.00024762,2]
[370355412,1751977849965,-460.0,0.00024762,2]
[370355413,1751977849975,-460.0,0.00024762,2]
[370355414,1751977849985,-460.0,0.00024762,2]
[370355415,1751977849995,-460.0,0.00024762,2]
[370355416,1751977850005,-460.0,0.00024762,2]
[370355417,1751977850014,-726.32,0.00024762,2]
[370355418,1751977850026,-460.0,0.00024762,2]
[370355419,1751977850037,-460.0,0.00024762,2]
[370355420,1751977850046,-460.0,0.00024762,2]
[370355421,1751977850056,-513.18,0.00024762,2]
[370355422,1751977850067,-460.0,0.00024762,2]
[370355423,1751977850077,-460.0,0.00024762,2]
[370355424,1751977850086,-460.0,0.00024762,2]
[370355425,1751977850096,-460.0,0.00024762,2]
[370355426,1751977850107,-460.0,0.00024762,2]
[370355427,1751977850118,-522.05,0.00024762,2]
[370355428,1751977850128,-460.0,0.00024762,2]
[370355429,1751977850137,-460.0,0.00024762,2]
[370355430,1751977850146,-460.0,0.00024762,2]
[370355431,1751977850156,-460.0,0.00024762,2]
[370355432,1751977850166,-460.0,0.00024762,2]
[370355433,1751977850176,-671.52,0.00024762,2]
[370355434,1751977850186,-460.0,0.00024762,2]
[370355436,1751977850195,-460.0,0.00024762,2]
[370355438,1751977850205,-460.0,0.00024762,2]
[370355440,1751977850215,-460.0,0.00024762,2]
[370355442,1751977850224,-460.0,0.00024762,2]
[370355444,1751977850234,-500.0,0.00024762,2]
[370355446,1751977850244,-460.0,0.00024762,2]
[370355448,1751977850253,-460.0,0.00024762,2]
[370355450,1751977850263,-656.03,0.00024762,2]
[370355452,1751977850272,-460.0,0.00024762,2]
[370355454,1751977850282,-500.0,0.00024762,2]
[370355456,1751977850291,-206.97159043,0.00024762,2]
[370355458,1751977850300,-460.0,0.00024762,2]
[370355460,1751977850310,-460.0,0.00024762,2]
[370355463,1751977850320,-460.0,0.00024762,2]
[370355464,1751977850329,-460.0,0.00024762,2]
[370355465,1751977850339,-460.0,0.00024762,2]
[370355466,1751977850349,-210.42967381,0.00024762,2]
[370355467,1751977850358,-482.38,0.00024762,2]
[370355468,1751977850367,-591.58,0.00024762,2]
[370355469,1751977850377,-470.45,0.00024762,2]
[370355470,1751977850387,-460.0,0.00024762,2]
[370355471,1751977850396,-525.96,0.00024762,2]
[370355472,1751977850406,-460.0,0.00024762,2]
[370355473,1751977850416,-460.0,0.00024762,2]
[370355474,1751977850425,-460.0,0.00024762,2]
[370355475,1751977850435,-460.0,0.00024762,2]
[370355476,1751977850444,-468.19,0.00024762,2]
[370355477,1751977850455,-542.5,0.00024762,2]
[370355479,1751977850464,-460.0,0.00024762,2]
[370355480,1751977850473,-1139.63,0.00024762,2]
[370355482,1751977850483,-460.0,0.00024762,2]
[370355485,1751977850493,-460.0,0.00024762,2]
[370355487,1751977850502,-460.0,0.00024762,2]
[370355489,1751977850512,-460.0,0.00024762,2]
[370355491,1751977850522,-460.0,0.00024762,2]
[370355493,1751977850531,-539.06,0.00024762,2]
[370355494,1751977850541,-568.74,0.00024762,2]
[370355495,1751977850550,-460.0,0.00024762,2]
[370355496,1751977850560,-460.0,0.00024762,2]
[370355497,1751977850570,-460.0,0.00024762,2]
[370355498,1751977850579,-460.0,0.00024762,2]
[370355499,1751977850589,-485.66,0.00024762,2]
[370355500,1751977850597,-460.0,0.00024762,2]
[370355501,1751977850607,-673.45,0.00024762,2]
[370355502,1751977850617,-460.0,0.00024762,2]
[370355503,1751977850626,-549.97,0.00024762,2]
[370355504,1751977850635,-470.87,0.00024762,2]
[370355505,1751977850644,-494.79,0.00024762,2]
[370355506,1751977850653,-460.0,0.00024762,2]
[370355507,1751977850663,-460.0,0.00024762,2]
[370355508,1751977850673,-460.0,0.00024762,2]
[370355509,1751977850682,-460.0,0.00024762,2]
[370355510,1751977850691,-744.24,0.00024762,2]
[370355511,1751977850701,-460.0,0.00024762,2]
[370355513,1751977850711,-460.0,0.00024762,2]
[370355515,1751977850720,-544.41,0.00024762,2]
[370355517,1751977850729,-804.08,0.00024762,2]
[370355519,1751977850738,-460.0,0.00024762,2]
[370355521,1751977850747,-460.0,0.00024762,2]
[370355523,1751977850757,-592.67,0.00024762,2]
[370355525,1751977850767,-460.0,0.00024762,2]
[370355527,1751977850776,-460.0,0.00024762,2]
[370355529,1751977850785,-460.0,0.00024762,2]
[370355531,1751977850795,-460.0,0.00024762,2]
[370355533,1751977850805,-460.0,0.00024762,2]
[370355535,1751977850816,-1917.13,0.00024762,2]
[370355537,1751977850826,-460.0,0.00024762,2]
[370355539,1751977850835,-661.58,0.00024762,2]
[370355541,1751977850845,-595.88637012,0.00024762,2]
[370355543,1751977850854,-460.0,0.00024762,2]
[370355545,1751977850864,-460.0,0.00024762,2]
[370355547,1751977850873,-460.0,0.00024762,2]
[370355549,1751977850882,-460.0,0.00024762,2]
[370355551,1751977850892,-460.0,0.00024762,2]
[370355553,1751977850902,-460.0,0.00024762,2]
[370355555,1751977850911,-460.0,0.00024762,2]
[370355557,1751977850921,-460.0,0.00024762,2]
[370355559,1751977850931,-624.14,0.00024762,2]
[370355561,1751977850940,-460.0,0.00024762,2]
[370355563,1751977850949,-460.0,0.00024762,2]
[370355565,1751977850958,-460.0,0.00024762,2]
[370355567,1751977850968,-460.0,0.00024762,2]
[370355569,1751977850977,-460.0,0.00024762,2]
[370355571,1751977850987,-460.0,0.00024762,2]
[370355573,1751977850997,-1404.21,0.00024762,2]
[370355574,1751977851007,-551.62,0.00024762,2]
[370355575,1751977851017,-500.0,0.00024762,2]
[370355576,1751977851029,-460.0,0.00024762,2]
[370355577,1751977851039,-460.0,0.00024762,2]
[370355578,1751977851049,-552.89,0.00024762,2]
[370355579,1751977851059,-460.0,0.00024762,2]
[370355580,1751977851068,-1083.0,0.00024762,2]
[370355581,1751977851078,-460.4,0.00024762,2]
[370355582,1751977851088,-460.0,0.00024762,2]
[370355584,1751977851098,-460.0,0.00024762,2]
[370355586,1751977851107,-460.0,0.00024762,2]
[370355588,1751977851118,-460.0,0.00024762,2]
[370355590,1751977851128,-568.18,0.00024762,2]
[370355592,1751977851137,-460.0,0.00024762,2]
[370355594,1751977851147,-339.93436773,0.00024762,2]
[370355596,1751977851157,-460.0,0.00024762,2]
[370355598,1751977851166,-559.11,0.00024762,2]
[370355600,1751977851175,-1700.53,0.00024762,2]
[370355602,1751977851185,-540.49,0.00024762,2]
[370355604,1751977851194,-460.0,0.00024762,2]
[370355606,1751977851204,-460.0,0.00024762,2]
[370355608,1751977851214,-460.0,0.00024762,2]
[370355610,1751977851224,-460.0,0.00024762,2]
[370355612,1751977851233,-460.0,0.00024762,2]
[370355614,1751977851242,-460.0,0.00024762,2]
[370355616,1751977851252,-1199.43,0.00024762,2]
[370355617,1751977851261,-502.65,0.00024762,2]
[370355618,1751977851270,-460.0,0.00024762,2]
[370355619,1751977851279,-460.0,0.00024762,2]
[370355620,1751977851289,-1084.93,0.00024762,2]
[370355621,1751977851298,-460.0,0.00024762,2]
[370355622,1751977851308,-460.0,0.00024762,2]
[370355623,1751977851318,-460.0,0.00024762,2]
[370355624,1751977851327,-12226.31,0.00024762,2]
[370355625,1751977851337,-460.0,0.00024762,2]
[370355626,1751977851346,-460.0,0.00024762,2]
[370355627,1751977851356,-460.0,0.00024762,2]
[370355628,1751977851365,-460.0,0.00024762,2]
[370355629,1751977851375,-460.0,0.00024762,2]
[370355630,1751977851385,-460.0,0.00024762,2]
[370355631,1751977851399,-460.0,0.00024762,2]
[370355632,1751977851410,-460.0,0.00024762,2]
[370355633,1751977851421,-460.0,0.00024762,2]
[370355634,1751977851431,-460.0,0.00024762,2]
[370355635,1751977851441,-3156.21,0.00024762,2]
[370355636,1751977851452,-460.0,0.00024762,2]
[370355637,1751977851464,-460.0,0.00024762,2]
[370355638,1751977851474,-460.0,0.00024762,2]
[370355639,1751977851484,-460.0,0.00024762,2]
[370355640,1751977851494,-460.0,0.00024762,2]
[370355641,1751977851504,-460.0,0.00024762,2]
[370355642,1751977851514,-460.0,0.00024762,2]
[370355643,1751977851524,-460.0,0.00024762,2]
[370355644,1751977851534,-460.0,0.00024762,2]
[370355645,1751977851544,-771.41,0.00024762,2]
[370355646,1751977851554,-460.0,0.00024762,2]
[370355647,1751977851564,-568.92074735,0.00024762,2]
[370355648,1751977851574,-460.0,0.00024762,2]
[370355649,1751977851584,-460.0,0.00024762,2]
[370355650,1751977851595,-463.18,0.00024762,2]
[370355651,1751977851605,-460.0,0.00024762,2]
[370355652,1751977851615,-460.0,0.00024762,2]
[370355653,1751977851625,-460.0,0.00024762,2]
[370355654,1751977851635,-689.86,0.00024762,2]
[370355655,1751977851645,-460.0,0.00024762,2]
[370355656,1751977851655,-500.0,0.00024762,2]
[370355657,1751977851665,-460.0,0.00024762,2]
[370355658,1751977851674,-670.09,0.00024762,2]
[370355659,1751977851684,-460.0,0.00024762,2]
[370355660,1751977851694,-1072.77,0.00024762,2]
[370355661,1751977851704,-460.0,0.00024762,2]
[370355662,1751977851714,-460.0,0.00024763,2]
[370355663,1751977851724,-495.61549425,0.00024763,2]
[370355664,1751977851733,-499.46132762,0.00024763,2]
[370355665,1751977851743,-460.0,0.00024763,2]
[370355666,1751977851752,-460.0,0.00024763,2]
[370355667,1751977851762,-460.0,0.00024763,2]
[370355668,1751977851771,-460.0,0.00024763,2]
[370355669,1751977851781,-460.0,0.00024763,2]
[370355670,1751977851790,-460.0,0.00024763,2]
[370355671,1751977851800,-507.93201924,0.00024763,2]
[370355672,1751977851810,-461.46100248,0.00024763,2]
[370355673,1751977851819,-411.75333194,0.00024763,2]
[370355674,1751977851829,-460.0,0.00024763,2]
[370355675,1751977851839,-460.0,0.00024763,2]
[370355676,1751977851849,-460.0,0.00024763,2]
[370355677,1751977851858,-533.05980643,0.00024763,2]
[370355678,1751977851869,-460.0,0.00024763,2]
[370355679,1751977851878,-223.88513,0.00024763,2]
[370355680,1751977851888,-151.39990699,0.00024763,2]
[370355681,1751977851898,-460.0,0.00024763,2]
[370355682,1751977851907,-463.17072912,0.00024763,2]
[370355683,1751977851917,-460.0,0.00024763,2]
[370355684,1751977851926,-460.0,0.00024763,2]
[370355685,1751977851936,-460.0,0.00024763,2]
[370355686,1751977851946,-460.0,0.00024763,2]
[370355687,1751977851955,-356.16993585,0.00024763,2]
[370355688,1751977851966,-492.0974312,0.00024763,2]
[370355689,1751977851976,-274.32657155,0.00024763,2]
[370355690,1751977852096,-460.0,0.00024763,2]
[370355691,1751977852107,-460.0,0.00024763,2]
[370355692,1751977852116,-460.0,0.00024763,2]
[370355693,1751977852126,-460.0,0.00024763,2]
[370355694,1751977852135,-276.61204836,0.00024763,2]
[370355695,1751977852144,-508.85119798,0.00024763,2]
[370355696,1751977852153,-460.0,0.00024763,2]
[370355697,1751977852163,-193.97631989,0.00024763,2]
[370355698,1751977852173,-171.5783715,0.00024763,2]
[370355699,1751977852182,-404.20940568,0.00024763,2]
[370355700,1751977852191,-589.8290281,0.00024763,2]
[370355701,1751977852201,-460.0,0.00024763,2]
[370355702,1751977852211,-460.0,0.00024763,2]
[370355703,1751977852221,-460.0,0.00024763,2]
[370355704,1751977852230,-460.0,0.00024763,2]
[370355705,1751977852239,-460.0,0.00024763,2]
[370355706,1751977852249,-460.0,0.00024763,2]
[370355707,1751977852258,-438.02563842,0.00024763,2]
[370355708,1751977852268,-460.0,0.00024763,2]
[370355709,1751977852277,-460.0,0.00024763,2]
[370355710,1751977852287,-460.0,0.00024763,2]
[370355711,1751977852296,-460.0,0.00024763,2]
[370355712,1751977852305,-460.0,0.00024763,2]
[370355713,1751977852315,-460.0,0.00024763,2]
[370355714,1751977852324,-551.73539674,0.00024763,2]
[370355715,1751977852334,-292.77111895,0.00024763,2]
[370355716,1751977852345,-490.0,0.00024763,2]
[370355717,1751977852354,-189.69797191,0.00024763,2]
[370355718,1751977852363,-460.0,0.00024763,2]
[370355719,1751977852373,-460.0,0.00024763,2]
[370355720,1751977852383,-460.0,0.00024763,2]
[370355721,1751977852394,-460.0,0.00024763,2]
[370355722,1751977852403,-460.0,0.00024763,2]
[370355723,1751977852413,-460.0,0.00024763,2]
[370355724,1751977852422,-460.0,0.00024763,2]
[370355725,1751977852432,-460.0,0.00024763,2]
[370355726,1751977852442,-460.0,0.00024763,2]
[370355727,1751977852453,-460.0,0.00024763,2]
[370355728,1751977852463,-460.0,0.00024763,2]
[370355729,1751977852472,-492.7147215,0.00024763,2]
[370355730,1751977852481,-460.0,0.00024763,2]
[370355731,1751977852491,-460.0,0.00024763,2]
[370355732,1751977852500,-460.0,0.00024763,2]
[370355733,1751977852510,-460.0,0.00024763,2]
[370355734,1751977852520,-460.0,0.00024763,2]
[370355735,1751977852530,-221.9807819,0.00024763,2]
[370355736,1751977852540,-460.0,0.00024763,2]
[370355737,1751977852549,-460.0,0.00024763,2]
[370355738,1751977852559,-460.0,0.00024763,2]
[370355739,1751977852569,-460.0,0.00024763,2]
[370355740,1751977852579,-647.26,0.00024763,2]
[370355741,1751977852588,-937.04,0.00024763,2]
[370355742,1751977852597,-1155.0,0.00024763,2]
[370355743,1751977852607,-460.0,0.00024763,2]
[370355744,1751977852617,-1149.27,0.00024763,2]
[370355745,1751977852627,-674.42,0.00024763,2]
[370355746,1751977852636,-1293.67,0.00024763,2]
[370355747,1751977852646,-460.0,0.00024763,2]
[370355748,1751977852655,-460.0,0.00024763,2]
[370355749,1751977852664,-1456.66,0.00024763,2]
[370355750,1751977852674,-1098.86,0.00024763,2]
[370355751,1751977852683,-1225.39,0.00024763,2]
[370355752,1751977852693,-460.0,0.00024763,2]
[370355753,1751977852703,-460.0,0.00024763,2]
[370355754,1751977852712,-827.11,0.00024763,2]
[370355755,1751977852721,-1268.95,0.00024763,2]
[370355756,1751977852730,-1702.67,0.00024763,2]
[370355757,1751977852740,-1426.38,0.00024763,2]
[370355758,1751977852750,-500.0,0.00024763,2]
[370355759,1751977852759,-818.14,0.00024763,2]
[370355760,1751977852770,-1280.52,0.00024763,2]
[370355761,1751977852780,-1312.12,0.00024763,2]
[370355762,1751977852789,-1291.74,0.00024763,2]
[370355763,1751977852799,-460.0,0.00024763,2]
[370355764,1751977852810,-519.65,0.00024763,2]
[370355765,1751977852821,-573.14,0.00024763,2]
[370355766,1751977852831,-975.98,0.00024763,2]
[370355767,1751977852840,-460.0,0.00024763,2]
[370355768,1751977852850,-460.0,0.00024763,2]
[370355769,1751977852861,-975.21,0.00024763,2]
[370355770,1751977852871,-562.03,0.00024763,2]
[370355771,1751977852880,-460.0,0.00024763,2]
[370355772,1751977852891,-368.00956895,0.00024763,2]
[370355773,1751977852900,-476.17,0.00024763,2]
[370355774,1751977852910,-460.0,0.00024763,2]
[370355775,1751977852920,-1406.6,0.00024763,2]
[370355776,1751977852931,-460.0,0.00024763,2]
[370355777,1751977852941,-460.0,0.00024763,2]
[370355778,1751977852952,-460.0,0.00024763,2]
[370355779,1751977852962,-460.0,0.00024763,2]
[370355780,1751977852971,-1134.2,0.00024763,2]
[370355781,1751977852980,-460.0,0.00024763,2]
[370355782,1751977852991,-1082.34,0.00024763,2]
[370355783,1751977853001,-806.35,0.00024763,2]
[370355784,1751977853012,-460.0,0.00024763,2]
[370355785,1751977853022,-518.2,0.00024763,2]
[370355786,1751977853041,-460.0,0.00024763,2]
[370355787,1751977853057,-480.69,0.00024763,2]
[370355788,1751977853067,-460.0,0.00024763,2]
[370355789,1751977853077,-965.62,0.00024763,2]
[370355790,1751977853087,-637.73,0.00024763,2]
[370355791,1751977853096,-571.35,0.00024763,2]
[370355792,1751977853106,-975.2,0.00024763,2]
[370355793,1751977853115,-460.0,0.00024763,2]
[370355794,1751977853125,-540.71,0.00024763,2]
[370355795,1751977853135,-460.0,0.00024763,2]
[370355796,1751977853144,-627.1,0.00024763,2]
[370355797,1751977853153,-717.49,0.00024763,2]
[370355798,1751977853164,-460.0,0.00024763,2]
[370355799,1751977853174,-640.21,0.00024763,2]
[370355800,1751977853184,-1588.71,0.00024763,2]
[370355801,1751977853195,-460.0,0.00024763,2]
[370355802,1751977853205,-500.0,0.00024763,2]
[370355803,1751977853215,-498.66,0.00024763,2]
[370355804,1751977853225,-500.0,0.00024763,2]
[370355805,1751977853235,-460.0,0.00024763,2]
[370355806,1751977853245,-150.0,0.00024763,2]
[370355807,1751977853255,-500.0,0.00024763,2]
[370355808,1751977853266,-1121.03,0.00024763,2]
[370355809,1751977853276,-1333.75,0.00024763,2]
[370355810,1751977853286,-574.86,0.00024763,2]
[370355811,1751977853297,-1228.26,0.00024763,2]
[370355812,1751977853308,-957.54,0.00024763,2]
[370355813,1751977853318,-150.0,0.00024763,2]
[370355814,1751977853329,-504.0,0.00024763,2]
[370355815,1751977853338,-460.0,0.00024763,2]
[370355816,1751977853348,-688.19,0.00024763,2]
[370355817,1751977853359,-460.0,0.00024763,2]
[370355818,1751977853368,-942.31,0.00024763,2]
[370355819,1751977853377,-460.0,0.00024763,2]
[370355820,1751977853388,-150.0,0.00024763,2]
[370355821,1751977853397,-150.0,0.00024763,2]
[370355822,1751977853407,-1653.97,0.00024763,2]
[370355823,1751977853416,-150.0,0.00024763,2]
[370355824,1751977853426,-500.0,0.00024763,2]
[370355825,1751977853435,-729.41,0.00024763,2]
[370355826,1751977853445,-150.0,0.00024763,2]
[370355827,1751977853454,-150.0,0.00024763,2]
[370355828,1751977853464,-1764.18,0.00024763,2]
[370355829,1751977853473,-176.2590727,0.0002477,2]
[370355830,1751977853483,-337.34312077,0.0002477,2]
[370355831,1751977853493,-157.44421473,0.0002477,2]
[370355832,1751977853503,-701.4292926,0.0002477,2]
[370355833,1751977853513,-226.43345694,0.0002477,2]
[370355834,1751977853522,-500.0,0.00024773,2]
[370355835,1751977853532,-500.0,0.00024773,2]
[370355836,1751977853542,-500.0,0.00024773,2]
[370355837,1751977853551,-500.0,0.00024792,2]
[370355838,1751977853561,-500.0,0.00024799,2]
[370355839,1751977853570,-500.0,0.00024799,2]
[370355840,1751977853581,-500.0,0.00024799,2]
[370355841,1751977853593,-500.0,0.00024799,2]
[370355842,1751977853603,-500.0,0.00024799,2]
[370355843,1751977853612,-500.0,0.00024799,2]
[370355844,1751977853622,-613.48,0.00024799,2]
[370355845,1751977853632,-500.0,0.00024799,2]
[370355846,1751977853642,-500.0,0.00024799,2]
[370355847,1751977853652,-500.0,0.00024799,2]
[370355848,1751977853662,-975.2,0.00024799,2]
[370355849,1751977853671,-975.2,0.00024799,2]
[370355850,1751977853680,-975.2,0.00024799,2]
[370355851,1751977853690,-500.0,0.00024799,2]
[370355852,1751977853699,-2000.0,0.000248,2]
[370355853,1751977853708,-2000.0,0.000248,2]
[370355854,1751977853718,-17626.08956786,0.000248,2]
[370355855,1751977853727,-317521.127696,0.000248,2]
[370355856,1751977853739,-200.0,0.000248,9]
[370355857,1751977853749,-1785.76879643,0.00024831,12]
[370355858,1751977853758,-513.34517266,0.00024838,2]
[370355859,1751977853767,-500.0,0.00024848,2]
[370355860,1751977853776,-500.0,0.00024848,2]
[370355861,1751977853787,-975.2,0.00024848,2]
[370355862,1751977853798,-460.0,0.00024849,2]
[370355863,1751977853809,-460.0,0.00024849,2]
[370355864,1751977853821,-460.0,0.00024849,2]
[370355865,1751977853832,-460.0,0.00024849,2]
[370355866,1751977853843,-460.45,0.00024849,2]
[370355867,1751977853853,-460.0,0.00024849,2]
[370355868,1751977853863,-460.0,0.00024849,2]
[370355869,1751977853872,-460.0,0.00024849,2]
[370355870,1751977853882,-460.0,0.00024849,2]
[370355871,1751977853892,-460.0,0.00024849,2]
[370355872,1751977853902,-460.0,0.00024849,2]
[370355873,1751977853911,-460.0,0.00024849,2]
[370355874,1751977853922,-460.0,0.00024849,2]
[370355875,1751977853933,-460.0,0.00024849,2]
[370355876,1751977853945,-496.47,0.00024849,2]
[370355877,1751977853955,-460.0,0.00024849,2]
[370355878,1751977853967,-477.95,0.00024849,2]
[370355879,1751977853977,-723.18,0.00024849,2]
[370355880,1751977853987,-695.59,0.00024849,2]
[370355881,1751977853999,-460.0,0.00024849,2]
[370355882,1751977854009,-460.0,0.00024849,2]
[370355883,1751977854019,-460.0,0.00024849,2]
[370355884,1751977854034,-460.0,0.00024849,2]
[370355885,1751977854045,-460.0,0.00024849,2]
[370355886,1751977854056,-460.0,0.00024849,2]
[370355887,1751977854068,-524.14,0.00024849,2]
[370355888,1751977854079,-460.0,0.00024849,2]
[370355889,1751977854090,-460.0,0.00024849,2]
[370355890,1751977854102,-460.0,0.00024849,2]
[370355891,1751977854112,-460.0,0.00024849,2]
[370355892,1751977854122,-652.1,0.00024849,2]
[370355893,1751977854134,-460.80101549,0.00024849,2]
[370355894,1751977854145,-460.0,0.00024849,2]
[370355895,1751977854157,-502.24,0.00024849,2]
[370355896,1751977854167,-460.0,0.00024849,2]
[370355897,1751977854179,-460.0,0.00024849,2]
[370355898,1751977854190,-564.25633834,0.00024849,2]
[370355899,1751977854200,-460.0,0.00024849,2]
[370355900,1751977854210,-460.0,0.00024849,2]
[370355901,1751977854220,-460.0,0.00024849,2]
[370355902,1751977854230,-460.0,0.00024849,2]
[370355903,1751977854240,-460.0,0.00024849,2]
[370355904,1751977854251,-661.62,0.00024849,2]
[370355905,1751977854261,-460.0,0.00024849,2]
[370355906,1751977854271,-460.0,0.00024849,2]